lending/lending_fUSD_20250408
["ID","MTS","AMOUNT","RATE_DAILY","PERIOD"]
[357561970,1744156260506,-588.95,0.00049315,120]
[357561971,1744156260515,-526.60557138,0.00049315,7]
[357561972,1744156260524,-500.0,0.00049315,120]
[357561973,1744156260534,-500.0,0.00049315,120]
[357561974,1744156260543,-552.66406412,0.00049315,120]
[357561975,1744156260551,-528.47,0.00049315,120]
[357561976,1744156260561,-500.0,0.00049315,120]
[357561977,1744156260570,-744.07,0.00049315,120]
[357561978,1744156260579,-500.0,0.00049315,120]
[357561979,1744156260589,-281.803215,0.00049315,120]
[357561980,1744156260601,-500.0,0.00049315,120]
[357561981,1744156260611,-500.0,0.00049315,120]
[357561982,1744156260621,-500.0,0.00049315,120]
[357561983,1744156260630,-500.0,0.00049315,120]
[357561984,1744156260640,-500.0,0.00049315,120]
[357561985,1744156260650,-500.0,0.00049315,120]
[357561986,1744156260658,-500.0,0.00049315,120]
[357561987,1744156260667,-500.0,0.00049315,120]
[357561988,1744156260676,-500.0,0.00049315,120]
[357561989,1744156260686,-500.0,0.00049315,120]
[357561990,1744156260695,-2000.0,0.00049315,30]
[357561991,1744156260704,-791.97,0.00049315,120]
[357561992,1744156260713,-500.0,0.00049315,120]
[357561993,1744156260722,-523.8482632,0.00049315,120]
[357561994,1744156260730,-500.0,0.00049315,120]
[357561995,1744156260740,-3500.0,0.00049315,10]
[357561996,1744156260749,-500.0,0.00049315,120]
[357561997,1744156260758,-500.0,0.00049315,120]
[357561998,1744156260767,-500.0,0.00049315,120]
[357561999,1744156260777,-636.92,0.00049315,120]
[357562000,1744156260786,-5941.55,0.00049315,120]
[357562001,1744156260795,-500.0,0.00049315,120]
[357562002,1744156260804,-500.0,0.00049315,120]
[357562003,1744156260814,-517.55683051,0.00049315,120]
[357562004,1744156260823,-500.0,0.00049315,120]
[357562005,1744156260832,-749.1,0.00049315,120]
[357562006,1744156260842,-500.0,0.00049315,120]
[357562007,1744156260851,-500.0,0.00049315,120]
[357562008,1744156260859,-500.0,0.00049315,120]
[357562009,1744156260869,-579.53,0.00049315,120]
[357562010,1744156260878,-500.0,0.00049315,120]
[357562011,1744156260887,-500.0,0.00049315,120]
[357562012,1744156260897,-1300.23,0.00049315,120]
[357562013,1744156260906,-500.0,0.00049315,120]
[357562014,1744156260915,-232.46091883,0.00049315,120]
[357562015,1744156260924,-500.0,0.00049315,120]
[357562016,1744156260933,-502.43,0.00049315,120]
[357562017,1744156260942,-862.28,0.00049315,120]
[357562018,1744156260952,-684.97,0.00049315,120]
[357562019,1744156260961,-258.12479212,0.00049315,120]
[357562020,1744156260970,-2107.02,0.00049315,120]
[357562021,1744156260981,-500.0,0.00049315,120]
[357562022,1744156260993,-500.0,0.00049315,120]
[357562023,1744156261002,-500.0,0.00049315,120]
[357562024,1744156261011,-867.84,0.00049315,120]
[357562025,1744156261021,-589.01,0.00049315,120]
[357562026,1744156261032,-500.0,0.00049315,120]
[357562027,1744156261041,-500.0,0.00049315,120]
[357562028,1744156261051,-500.0,0.00049315,120]
[357562029,1744156261061,-500.0,0.00049315,120]
[357562030,1744156261072,-502.01120105,0.00049315,120]
[357562031,1744156261081,-575.85,0.00049315,120]
[357562032,1744156261091,-500.50312355,0.00049315,120]
[357562033,1744156261100,-884.25,0.00049315,120]
[357562034,1744156261110,-500.0,0.00049315,120]
[357562035,1744156261119,-619.75,0.00049315,120]
[357562036,1744156261128,-500.0,0.00049315,120]
[357562037,1744156261138,-1028.31,0.00049315,120]
[357562038,1744156261152,-506.62,0.00049315,120]
[357562039,1744156261162,-500.0,0.00049315,120]
[357562040,1744156261171,-500.0,0.00049315,120]
[357562041,1744156261180,-500.0,0.00049315,120]
[357562042,1744156261189,-500.0,0.00049315,120]
[357562043,1744156261199,-533.71038634,0.00049315,120]
[357562044,1744156261208,-500.0,0.00049315,120]
[357562045,1744156261218,-500.0,0.00049315,120]
[357562046,1744156261227,-244.769885,0.00049315,14]
[357562047,1744156261237,-500.0,0.00049315,120]
[357562048,1744156261246,-244.769885,0.00049315,14]
[357562049,1744156261256,-500.0,0.00049315,120]
[357562050,1744156261265,-500.0,0.00049315,120]
[357562051,1744156261275,-500.0,0.00049315,120]
[357562052,1744156261285,-500.0,0.00049315,120]
[357562053,1744156261294,-500.0,0.00049315,120]
[357562054,1744156261303,-500.0,0.00049315,120]
[357562055,1744156261313,-1000.0,0.00049315,120]
[357562056,1744156261322,-244.769885,0.00049315,14]
[357562057,1744156261331,-500.0,0.00049315,120]
[357562058,1744156261341,-244.769885,0.00049315,14]
[357562059,1744156261350,-1018.12,0.00049315,120]
[357562060,1744156261359,-500.0,0.00049315,120]
[357562061,1744156261368,-500.0,0.00049315,120]
[357562062,1744156261377,-500.0,0.00049315,120]
[357562063,1744156261387,-544.45,0.00049315,120]
[357562064,1744156261396,-2563.89,0.00049315,120]
[357562065,1744156261405,-500.0,0.00049315,120]
[357562066,1744156261415,-500.0,0.00049315,120]
[357562067,1744156261425,-500.42536275,0.00049315,2]
[357562068,1744156261434,-500.0,0.00049315,120]
[357562069,1744156261443,-500.0,0.00049315,120]
[357562070,1744156261452,-500.0,0.00049315,120]
[357562071,1744156261462,-602.92,0.00049315,120]
[357562072,1744156261471,-500.0,0.00049315,120]
[357562073,1744156261480,-500.0,0.00049315,120]
[357562074,1744156261490,-500.0,0.00049315,120]
[357562075,1744156261499,-500.0,0.00049315,120]
[357562076,1744156261508,-500.0,0.00049315,120]
[357562077,1744156261517,-500.0,0.00049315,120]
[357562078,1744156261528,-642.04,0.00049315,120]
[357562079,1744156261537,-500.0,0.00049315,120]
[357562080,1744156261546,-500.0,0.00049315,120]
[357562081,1744156261555,-761.32,0.00049315,120]
[357562082,1744156261564,-500.0,0.00049315,120]
[357562083,1744156261573,-634.2,0.00049315,120]
[357562084,1744156261582,-669.23,0.00049315,120]
[357562085,1744156261592,-500.0,0.00049315,120]
[357562086,1744156261601,-500.0,0.00049315,120]
[357562087,1744156261610,-500.0,0.00049315,120]
[357562088,1744156261619,-500.0,0.00049315,120]
[357562089,1744156261629,-500.0,0.00049315,120]
[357562090,1744156261643,-1004.27,0.00049315,120]
[357562091,1744156261652,-454.9158775,0.00049315,120]
[357562092,1744156261661,-646.89,0.00049315,120]
[357562093,1744156261670,-500.0,0.00049315,120]
[357562094,1744156261679,-917.08,0.00049315,120]
[357562095,1744156261688,-500.0,0.00049315,120]
[357562096,1744156261697,-602.13381698,0.00049315,120]
[357562097,1744156261706,-579.25475422,0.00049315,120]
[357562098,1744156261715,-500.0,0.00049315,120]
[357562099,1744156261724,-501.23486406,0.00049315,120]
[357562100,1744156261734,-500.0,0.00049315,120]
[357562101,1744156261743,-151.0,0.00049315,14]
[357562102,1744156261752,-999.0,0.00049315,120]
[357562103,1744156261761,-1668.69,0.00049315,120]
[357562104,1744156261770,-151.0,0.00049315,14]
[357562105,1744156261780,-500.0,0.00049315,120]
[357562106,1744156261789,-500.0,0.00049315,120]
[357562107,1744156261799,-537.26082727,0.00049315,60]
[357562108,1744156261808,-1117.18,0.00049315,120]
[357562109,1744156261817,-604.68479431,0.00049315,120]
[357562110,1744156261828,-500.0,0.00049315,120]
[357562111,1744156261844,-500.0,0.00049315,120]
[357562112,1744156261861,-500.0,0.00049315,120]
[357562113,1744156261876,-500.0,0.00049315,120]
[357562114,1744156261887,-500.0,0.00049315,120]
[357562115,1744156261896,-1995.13,0.00049315,120]
[357562116,1744156261907,-500.0,0.00049315,120]
[357562117,1744156261917,-500.0,0.00049315,120]
[357562118,1744156261928,-2621.63,0.00049315,120]
[357562119,1744156261938,-500.0,0.00049315,120]
[357562120,1744156261949,-500.0,0.00049315,120]
[357562121,1744156261959,-500.0,0.00049315,120]
[357562122,1744156261970,-500.0,0.00049315,120]
[357562123,1744156261980,-548.42041158,0.00049315,120]
[357562124,1744156261992,-500.0,0.00049315,120]
[357562125,1744156262001,-501.49452565,0.00049315,2]
[357562126,1744156262011,-970.03,0.00049315,118]
[357562127,1744156262020,-500.0,0.00049315,120]
[357562128,1744156262033,-500.0,0.00049315,120]
[357562129,1744156262042,-500.0,0.00049315,120]
[357562130,1744156262051,-899.6,0.00049315,120]
[357562131,1744156262063,-511.16,0.00049315,120]
[357562132,1744156262072,-679.39,0.00049315,120]
[357562133,1744156262082,-550.25,0.00049315,120]
[357562134,1744156262091,-502.17896105,0.00049315,120]
[357562135,1744156262100,-500.0,0.00049315,120]
[357562136,1744156262109,-281.43515041,0.00049315,120]
[357562137,1744156262119,-500.0,0.00049315,120]
[357562138,1744156262127,-500.0,0.00049315,120]
[357562139,1744156262137,-500.0,0.00049315,120]
[357562140,1744156262146,-500.0,0.00049315,120]
[357562141,1744156262154,-565.61272487,0.00049315,120]
[357562142,1744156262164,-500.0,0.00049315,120]
[357562143,1744156262174,-500.0,0.00049315,120]
[357562144,1744156262183,-805.25,0.00049315,120]
[357562145,1744156262192,-500.0,0.00049315,120]
[357562146,1744156262202,-500.0,0.00049315,120]
[357562147,1744156262211,-500.0,0.00049315,120]
[357562148,1744156262220,-1661.7,0.00049315,120]
[357562149,1744156262229,-500.0,0.00049315,120]
[357562150,1744156262240,-1081.06,0.00049315,120]
[357562151,1744156262250,-510.28,0.00049315,120]
[357562152,1744156262259,-500.0,0.00049315,120]
[357562153,1744156262268,-261.19549,0.00049315,14]
[357562154,1744156262278,-1171.12,0.00049315,120]
[357562155,1744156262288,-261.19549,0.00049315,14]
[357562156,1744156262297,-151.0,0.00049315,14]
[357562157,1744156262306,-504.81,0.00049315,120]
[357562158,1744156262315,-500.0,0.00049315,120]
[357562159,1744156262324,-151.0,0.00049315,14]
[357562160,1744156262333,-500.0,0.00049315,120]
[357562161,1744156262342,-500.0,0.00049315,120]
[357562162,1744156262351,-500.0,0.00049315,120]
[357562163,1744156262360,-500.0,0.00049315,120]
[357562164,1744156262369,-500.0,0.00049315,120]
[357562165,1744156262378,-500.0,0.00049315,120]
[357562166,1744156262387,-500.0,0.00049315,120]
[357562167,1744156262396,-261.19549,0.00049315,14]
[357562168,1744156262406,-500.0,0.00049315,120]
[357562169,1744156262415,-500.0,0.00049315,120]
[357562170,1744156262424,-261.19549,0.00049315,14]
[357562171,1744156262434,-500.0,0.00049315,120]
[357562172,1744156262443,-500.0,0.00049315,120]
[357562173,1744156262452,-500.0,0.00049315,120]
[357562174,1744156262462,-500.0,0.00049315,120]
[357562175,1744156262471,-500.0,0.00049315,120]
[357562176,1744156262481,-500.0,0.00049315,120]
[357562177,1744156262490,-500.0,0.00049315,120]
[357562178,1744156262499,-500.0,0.00049315,120]
[357562179,1744156262509,-500.0,0.00049315,120]
[357562180,1744156262518,-500.0,0.00049315,120]
[357562181,1744156262528,-691.09,0.00049315,120]
[357562182,1744156262538,-733.45,0.00049315,120]
[357562183,1744156262547,-500.0,0.00049315,120]
[357562184,1744156262556,-647.44,0.00049315,120]
[357562185,1744156262566,-500.0,0.00049315,120]
[357562186,1744156262575,-1708.27,0.00049315,120]
[357562187,1744156262584,-500.0,0.00049315,120]
[357562188,1744156262593,-2407.628196,0.00049315,14]
[357562189,1744156262602,-2407.628196,0.00049315,14]
[357562190,1744156262612,-500.0,0.00049315,120]
[357562191,1744156262621,-2407.628196,0.00049315,14]
[357562192,1744156262631,-500.0,0.00049315,120]
[357562193,1744156262640,-631.78286862,0.00049315,120]
[357562194,1744156262650,-2407.628196,0.00049315,14]
[357562195,1744156262659,-1050.83,0.00049315,120]
[357562196,1744156262669,-500.0,0.00049315,3]
[357562197,1744156262678,-500.0,0.00049315,120]
[357562198,1744156262687,-1217.83,0.00049315,120]
[357562199,1744156262696,-500.0,0.00049315,120]
[357562200,1744156262706,-545.35,0.00049315,120]
[357562201,1744156262715,-500.0,0.00049315,120]
[357562202,1744156262725,-500.0,0.00049315,120]
[357562203,1744156262734,-500.0,0.00049315,120]
[357562204,1744156262743,-500.0,0.00049315,120]
[357562205,1744156262752,-663.79,0.00049315,120]
[357562206,1744156262762,-500.0,0.00049315,120]
[357562207,1744156262778,-500.0,0.00049315,120]
[357562208,1744156262793,-721.03,0.00049315,120]
[357562209,1744156262805,-500.0,0.00049315,120]
[357562210,1744156262819,-1024.82,0.00049315,120]
[357562211,1744156262830,-500.0,0.00049315,120]
[357562212,1744156262842,-500.0,0.00049315,120]
[357562213,1744156262851,-500.0,0.00049315,120]
[357562214,1744156262860,-501.36048396,0.00049315,120]
[357562215,1744156262870,-500.0,0.00049315,120]
[357562216,1744156262880,-591.81,0.00049315,120]
[357562217,1744156262889,-695.39,0.00049315,120]
[357562218,1744156262898,-500.0,0.00049315,2]
[357562219,1744156262908,-500.0,0.00049315,120]
[357562220,1744156262917,-1196.79,0.00049315,120]
[357562221,1744156262927,-500.0,0.00049315,120]
[357562222,1744156262936,-500.0,0.00049315,120]
[357562223,1744156262946,-500.0,0.00049315,120]
[357562224,1744156262955,-500.0,0.00049315,120]
[357562225,1744156262965,-500.0,0.00049315,120]
[357562226,1744156262975,-500.0,0.00049315,120]
[357562227,1744156262988,-500.0,0.00049315,120]
[357562228,1744156262998,-623.08,0.00049315,120]
[357562229,1744156263008,-500.0,0.00049315,120]
[357562230,1744156263017,-500.0,0.00049315,120]
[357562231,1744156263027,-500.926054,0.00049315,2]
[357562232,1744156263039,-565.81,0.00049315,120]
[357562233,1744156263049,-500.0,0.00049315,16]
[357562234,1744156263059,-500.0,0.00049315,120]
[357562235,1744156263070,-798.81,0.00049315,30]
[357562236,1744156263080,-500.0,0.00049315,120]
[357562237,1744156263091,-500.0,0.00049315,120]
[357562238,1744156263101,-512.81300777,0.00049315,120]
[357562239,1744156263112,-372.762222,0.00049315,14]
[357562240,1744156263123,-884.06,0.00049315,120]
[357562241,1744156263134,-372.762222,0.00049315,14]
[357562242,1744156263145,-500.0,0.00049315,2]
[357562243,1744156263156,-235.82459942,0.00049315,120]
[357562244,1744156263167,-1083.79,0.00049315,120]
[357562245,1744156263177,-864.98,0.00049315,120]
[357562246,1744156263188,-500.0,0.00049315,120]
[357562247,1744156263198,-372.762222,0.00049315,14]
[357562248,1744156263208,-372.762222,0.00049315,14]
[357562249,1744156263219,-500.0,0.00049315,120]
[357562250,1744156263228,-500.0,0.00049315,120]
[357562251,1744156263239,-500.0,0.00049315,120]
[357562252,1744156263249,-500.0,0.00049315,120]
[357562253,1744156263259,-500.0,0.00049315,120]
[357562254,1744156263269,-500.0,0.00049315,2]
[357562255,1744156263280,-500.0,0.00049315,120]
[357562256,1744156263291,-500.0,0.00049315,120]
[357562257,1744156263301,-500.0,0.00049315,120]
[357562258,1744156263311,-1000.0,0.00049315,120]
[357562259,1744156263322,-995.82,0.00049315,120]
[357562260,1744156263332,-638.51,0.00049315,120]
[357562261,1744156263342,-500.0,0.00049315,120]
[357562262,1744156263352,-500.0,0.00049315,120]
[357562263,1744156263362,-500.0,0.00049315,120]
[357562264,1744156263372,-522.11,0.00049315,120]
[357562265,1744156263382,-500.0,0.00049315,120]
[357562266,1744156263393,-168.42,0.00049315,2]
[357562267,1744156263403,-150.0,0.00049318,7]
[357562268,1744156263412,-151.0,0.0004932,120]
[357562269,1744156263422,-2407.628196,0.0004932,120]
[357562270,1744156263432,-2407.628196,0.0004932,120]
[357562271,1744156263442,-372.762222,0.0004932,120]
[357562272,1744156263452,-372.762222,0.0004932,120]
[357562273,1744156263462,-150.0,0.00049333,7]
[357562274,1744156263472,-150.0,0.00049343,7]
[357562275,1744156263482,-150.0,0.00049351,7]
[357562276,1744156263492,-150.0,0.00049406,7]
[357562277,1744156263502,-150.0,0.00049455,7]
[357562278,1744156263512,-150.0,0.0004949,7]
[357562279,1744156263522,-150.0,0.00049492,7]
[357562280,1744156263532,-1261.799537,0.000495,7]
[357562281,1744156263542,-2340.82,0.000495,60]
[357562282,1744156263552,-244.769885,0.000495,120]
[357562283,1744156263562,-244.769885,0.000495,120]
[357562284,1744156263572,-151.0,0.000495,120]
[357562285,1744156263582,-261.19549,0.000495,120]
[357562286,1744156263592,-261.19549,0.000495,120]
[357562287,1744156263601,-150.0,0.00049533,7]
[357562288,1744156263611,-150.0,0.00049544,7]
[357562289,1744156263621,-150.0,0.00049566,7]
[357562290,1744156263631,-150.0,0.00049601,7]
[357562291,1744156263640,-150.0,0.00049609,7]
[357562292,1744156263650,-150.0,0.00049612,7]
[357562293,1744156263659,-150.0,0.00049618,7]
[357562294,1744156263669,-150.0,0.00049646,30]
[357562295,1744156263678,-150.0,0.00049648,7]
[357562296,1744156263689,-150.0,0.00049657,30]
[357562297,1744156263699,-150.0,0.0004968,7]
[357562298,1744156263709,-150.0,0.00049694,7]
[357562299,1744156263719,-150.0,0.00049694,7]
[357562300,1744156263729,-150.0,0.00049696,7]
[357562301,1744156263738,-154.3237107,0.00049744,7]
[357562302,1744156263748,-150.0,0.00049748,30]
[357562303,1744156263758,-150.0,0.00049755,7]
[357562304,1744156263768,-150.0,0.00049758,7]
[357562305,1744156263777,-150.0,0.0004978,7]
[357562306,1744156263787,-150.0,0.00049792,7]
[357562307,1744156263797,-150.0,0.00049824,7]
[357562308,1744156263807,-150.0,0.00049826,7]
[357562309,1744156263817,-150.0,0.00049827,7]
[357562310,1744156263826,-276.5843275,0.00049853,7]
[357562311,1744156263836,-150.0,0.00049862,3]
[357562312,1744156263845,-500.0,0.00049863,120]
[357562313,1744156263855,-500.0,0.00049863,120]
[357562314,1744156263865,-531.44576873,0.00049863,120]
[357562315,1744156263875,-257.82649174,0.00049863,120]
[357562316,1744156263885,-500.0,0.00049863,120]
[357562317,1744156263895,-746.11,0.00049863,120]
[357562318,1744156263905,-500.0,0.00049863,120]
[357562319,1744156263915,-500.0,0.00049863,120]
[357562320,1744156263925,-500.0,0.00049863,120]
[357562321,1744156263935,-500.0,0.00049863,120]
[357562322,1744156263945,-500.0,0.00049863,120]
[357562323,1744156263955,-500.0,0.00049863,120]
[357562324,1744156263966,-1386.24,0.00049863,120]
[357562325,1744156263977,-497.89022,0.00049863,120]
[357562326,1744156263995,-500.0,0.00049863,120]
[357562327,1744156264011,-500.0,0.00049863,120]
[357562328,1744156264021,-500.0,0.00049863,120]
[357562329,1744156264031,-500.0,0.00049863,120]
[357562330,1744156264041,-500.0,0.00049863,120]
[357562331,1744156264051,-500.0,0.00049863,120]
[357562332,1744156264060,-500.0,0.00049863,120]
[357562333,1744156264070,-320.10209435,0.00049863,120]
[357562334,1744156264080,-500.0,0.00049863,120]
[357562335,1744156264090,-500.0,0.00049863,120]
[357562336,1744156264100,-500.0,0.00049863,120]
[357562337,1744156264110,-500.0,0.00049863,120]
[357562338,1744156264119,-500.0,0.00049863,120]
[357562339,1744156264129,-500.0,0.00049863,120]
[357562340,1744156264139,-654.05,0.00049863,2]
[357562341,1744156264149,-500.0,0.00049863,120]
[357562342,1744156264158,-500.0,0.00049863,120]
[357562343,1744156264169,-500.0,0.00049863,120]
[357562344,1744156264179,-492.46469486,0.00049863,120]
[357562345,1744156264188,-529.50264027,0.00049863,120]
[357562346,1744156264198,-500.0,0.00049863,120]
[357562347,1744156264208,-500.0,0.00049863,120]
[357562348,1744156264218,-500.0,0.00049863,120]
[357562349,1744156264228,-500.0,0.00049863,120]
[357562350,1744156264238,-500.0,0.00049863,120]
[357562351,1744156264248,-500.0,0.00049863,120]
[357562352,1744156264258,-500.0,0.00049863,120]
[357562353,1744156264268,-538.25548873,0.00049863,120]
[357562354,1744156264280,-631.48,0.00049863,120]
[357562355,1744156264290,-500.0,0.00049863,120]
[357562356,1744156264300,-500.0,0.00049863,120]
[357562357,1744156264310,-576.32258938,0.00049863,120]
[357562358,1744156264320,-500.0,0.00049863,120]
[357562359,1744156264330,-568.65,0.00049863,120]
[357562360,1744156264340,-574.64,0.00049863,120]
[357562361,1744156264350,-500.0,0.00049863,120]
[357562362,1744156264360,-500.0,0.00049863,120]
[357562363,1744156264370,-500.0,0.00049863,120]
[357562364,1744156264380,-500.0,0.00049863,120]
[357562365,1744156264389,-500.0,0.00049863,120]
[357562366,1744156264399,-556.24,0.00049863,120]
[357562367,1744156264409,-332.8516494,0.00049863,120]
[357562368,1744156264419,-500.0,0.00049863,120]
[357562369,1744156264429,-500.0,0.00049863,120]
[357562370,1744156264439,-1236.94,0.00049863,120]
[357562371,1744156264448,-500.0,0.00049863,120]
[357562372,1744156264458,-500.0,0.00049863,120]
[357562373,1744156264468,-500.0,0.00049863,120]
[357562374,1744156264478,-500.0,0.00049863,120]
[357562375,1744156264487,-500.0,0.00049863,120]
[357562376,1744156264497,-500.0,0.00049863,120]
[357562377,1744156264506,-500.0,0.00049863,120]
[357562378,1744156264516,-500.0,0.00049863,120]
[357562379,1744156264527,-500.0,0.00049863,120]
[357562380,1744156264536,-500.0,0.00049863,120]
[357562381,1744156264546,-500.0,0.00049863,120]
[357562382,1744156264555,-1209.84,0.00049863,120]
[357562383,1744156264565,-500.0,0.00049863,120]
[357562384,1744156264575,-500.0,0.00049863,120]
[357562385,1744156264585,-525.68709956,0.00049863,120]
[357562386,1744156264595,-533.0081755,0.00049863,120]
[357562387,1744156264604,-500.0,0.00049863,120]
[357562388,1744156264614,-1003.83,0.00049863,120]
[357562389,1744156264624,-500.0,0.00049863,120]
[357562390,1744156264634,-500.0,0.00049863,120]
[357562391,1744156264644,-500.0,0.00049863,120]
[357562392,1744156264654,-500.0,0.00049863,120]
[357562393,1744156264663,-500.0,0.00049863,120]
[357562394,1744156264673,-500.0,0.00049863,120]
[357562395,1744156264683,-616.84,0.00049863,120]
[357562396,1744156264693,-509.02,0.00049863,120]
[357562397,1744156264702,-500.0,0.00049863,120]
[357562398,1744156264712,-500.0,0.00049863,120]
[357562399,1744156264721,-792.48,0.00049863,10]
[357562400,1744156264731,-500.0,0.00049863,120]
[357562401,1744156264741,-500.0,0.00049863,120]
[357562402,1744156264751,-500.0,0.00049863,120]
[357562403,1744156264760,-500.0,0.00049863,120]
[357562404,1744156264770,-500.0,0.00049863,120]
[357562405,1744156264781,-361.75626288,0.00049863,120]
[357562406,1744156264791,-643.31,0.00049863,120]
[357562407,1744156264801,-500.0,0.00049863,120]
[357562408,1744156265070,-316.78650339,0.00049863,120]
[357562409,1744156265084,-519.40124415,0.00049863,120]
[357562410,1744156265093,-500.0,0.00049863,120]
[357562411,1744156265102,-500.0,0.00049863,120]
[357562412,1744156265112,-500.0,0.00049863,120]
[357562413,1744156265121,-500.0,0.00049863,120]
[357562414,1744156265130,-500.0,0.00049863,30]
[357562415,1744156265140,-500.0,0.00049863,120]
[357562416,1744156265149,-500.0,0.00049863,30]
[357562417,1744156265159,-500.0,0.00049863,120]
[357562418,1744156265169,-500.0,0.00049863,120]
[357562419,1744156265178,-500.0,0.00049863,120]
[357562420,1744156265188,-500.0,0.00049863,120]
[357562421,1744156265198,-1489.25,0.00049863,120]
[357562422,1744156265208,-667.7,0.00049863,120]
[357562423,1744156265217,-654.61,0.00049863,120]
[357562424,1744156265227,-500.0,0.00049863,120]
[357562425,1744156265237,-589.54,0.00049863,120]
[357562426,1744156265246,-500.0,0.00049863,120]
[357562427,1744156265256,-500.0,0.00049863,120]
[357562428,1744156265265,-500.0,0.00049863,120]
[357562429,1744156265274,-500.0,0.00049863,120]
[357562430,1744156265284,-711.59,0.00049863,120]
[357562431,1744156265293,-506.69177923,0.00049863,120]
[357562432,1744156265303,-571.29078618,0.00049863,120]
[357562433,1744156265312,-500.0,0.00049863,120]
[357562434,1744156265322,-500.0,0.00049863,120]
[357562435,1744156265331,-500.0,0.00049863,120]
[357562436,1744156265341,-500.0,0.00049863,120]
[357562437,1744156265350,-500.0,0.00049863,120]
[357562438,1744156265359,-577.03191774,0.00049863,120]
[357562439,1744156265369,-992.01,0.00049863,120]
[357562440,1744156265379,-500.0,0.00049863,120]
[357562441,1744156265388,-500.0,0.00049863,120]
[357562442,1744156265397,-500.0,0.00049863,120]
[357562443,1744156265407,-500.0,0.00049863,120]
[357562444,1744156265416,-500.0,0.00049863,120]
[357562445,1744156265425,-595.05,0.00049863,120]
[357562446,1744156265435,-500.0,0.00049863,120]
[357562447,1744156265444,-500.0,0.00049863,120]
[357562448,1744156265454,-155.88781264,0.00049863,120]
[357562449,1744156265463,-500.0,0.00049863,120]
[357562450,1744156265473,-500.0,0.00049863,120]
[357562451,1744156265482,-500.0,0.00049863,120]
[357562452,1744156265491,-500.0,0.00049863,120]
[357562453,1744156265500,-500.0,0.00049863,120]
[357562454,1744156265510,-566.54,0.00049863,120]
[357562455,1744156265519,-151.0,0.00049863,120]
[357562456,1744156265529,-151.0,0.00049863,120]
[357562457,1744156265539,-500.0,0.00049863,120]
[357562458,1744156265549,-500.0,0.00049863,120]
[357562459,1744156265558,-500.0,0.00049863,120]
[357562460,1744156265567,-151.0,0.00049863,120]
[357562461,1744156265576,-151.0,0.00049863,120]
[357562462,1744156265586,-500.0,0.00049863,120]
[357562463,1744156265595,-2000.0,0.00049863,2]
[357562464,1744156265605,-500.0,0.00049863,120]
[357562465,1744156265614,-697.56,0.00049863,120]
[357562466,1744156265623,-500.0,0.00049863,120]
[357562467,1744156265633,-500.0,0.00049863,120]
[357562468,1744156265642,-799.79,0.00049863,120]
[357562469,1744156265652,-500.0,0.00049863,120]